bitfinex/quotes_ETHUSD_20250106
["timestamp","ask_amount","ask_price","bid_price","bid_amount"]
[1736137927958,1.71069286,3665.8,3665.4,0.7503]
[1736137928159,1.71069286,3665.8,3665.5,0.0703041]
[1736137928369,1.71069286,3665.8,3665.7,2.45519]
[1736137928576,1.71069286,3665.8,3665.7,3.62368029]
[1736137928859,1.71069286,3665.8,3665.7,1.23868782]
[1736137929059,1.71069286,3665.8,3665.7,0.07019753]
[1736137929290,1.18040882,3666.0,3665.5,0.7979]
[1736137929597,1.18040882,3666.0,3665.6,0.07023085]
[1736137930576,2.4488797,3665.9,3665.6,0.07023085]
[1736137930778,1.18040882,3665.8,3665.6,0.07023085]
[1736137930978,1.95370882,3665.8,3665.6,0.07023085]
[1736137931163,1.95370882,3665.8,3665.3,0.7646]
[1736137931507,1.95370882,3665.8,3665.7,0.07013987]
[1736137931684,1.30438463,3665.7,3665.3,0.7646]
[1736137932487,2.32490389,3665.8,3665.3,0.7646]
[1736137932688,2.88200262,3665.8,3665.3,0.7646]
[1736137933009,2.88200262,3665.8,3665.0,0.7531]
[1736137933010,1.18040882,3665.6,3665.0,0.7531]
[1736137933804,1.18040882,3665.6,3665.1,0.07033983]
[1736137934129,2.32490389,3665.8,3665.1,0.07033983]
[1736137935003,1.14449507,3665.7,3665.1,0.07033983]
[1736137937833,1.30401476,3665.6,3665.1,0.07033983]
[1736137939046,1.18040882,3665.2,3665.1,0.07033983]
[1736137939417,1.18040882,3665.4,3665.1,0.07033983]
[1736137939616,1.18040882,3665.4,3664.8,1.41702592]
[1736137939831,1.18040882,3665.4,3665.2,0.0702089]
[1736137940012,1.18040882,3665.4,3664.8,1.41702592]
[1736137940352,2.32490389,3665.4,3665.3,0.07017557]
[1736137940547,2.32490389,3665.4,3664.7,35.7853]
[1736137940747,2.32490389,3665.4,3665.3,0.07017557]
[1736137941255,2.32490389,3665.4,3664.7,35.7853]
[1736137941470,2.32490389,3665.4,3665.3,0.07017557]
[1736137941617,1.30360704,3665.3,3664.7,0.7853]
[1736137942161,1.18040882,3665.2,3664.7,0.7853]
[1736137942539,1.18040882,3665.0,3664.5,1.4199273]
[1736137942738,1.93990882,3664.6,3664.5,1.4199273]
[1736137944119,1.93990882,3664.6,3664.2,35.0]
[1736137946454,1.14449507,3664.7,3664.3,0.7603]
[1736137946766,2.32490389,3664.8,3664.3,0.7603]
[1736137947377,1.14449507,3664.8,3664.3,0.7603]
[1736137948393,1.14449507,3664.9,3664.3,0.7603]
[1736137948806,1.14449507,3664.9,3664.4,0.0686266]
[1736137949671,1.14449507,3664.9,3664.5,3.00598]
[1736137949873,1.14449507,3664.9,3664.6,0.7819]
[1736137950098,1.14449507,3665.0,3664.7,35.0]
[1736137950300,1.14449507,3665.0,3664.7,35.06852657]
[1736137951515,2.28092381,3665.4,3664.7,0.06852657]
[1736137951516,0.7561,3664.9,3664.7,0.06852657]
[1736137952019,0.7561,3664.9,3664.2,0.8296]
[1736137952244,0.7561,3664.9,3664.8,0.06849323]
[1736137952518,0.7561,3664.9,3664.2,0.8296]
[1736137952922,0.7561,3664.9,3664.3,0.06879304]
[1736137954317,0.7561,3664.9,3664.0,0.7547]
[1736137954802,0.7561,3664.9,3664.1,0.0689973]
[1736137955415,1.36279479,3664.9,3664.1,0.0689973]
[1736137955577,0.7561,3664.9,3664.1,0.0689973]
[1736137956024,1.90059507,3664.9,3664.1,0.0689973]
[1736137956693,4.35632507,3664.9,3664.1,0.0689973]
[1736137956898,3.21183,3664.9,3664.1,0.0689973]
[1736137957489,0.7561,3664.9,3664.1,0.0689973]
[1736137958493,0.7561,3664.9,3664.2,35.0]
[1736137958931,0.7561,3664.9,3664.3,0.06893946]
[1736137960038,1.14449507,3665.0,3664.8,2.45578]
[1736137960220,1.14449507,3665.0,3664.9,2.45572]
[1736137960425,1.14449507,3665.0,3664.9,3.58660923]
[1736137961847,1.14449507,3665.6,3664.9,1.13088923]
[1736137962175,1.14449507,3665.6,3664.9,0.88531723]
[1736137962573,1.14449507,3665.6,3665.0,35.0]
[1736137962874,1.14449507,3665.6,3665.1,0.06865056]
[1736137963039,1.89579507,3665.8,3665.1,2.52420056]
[1736137963241,1.89579507,3665.8,3665.2,0.33408006]
[1736137963448,1.89579507,3665.8,3665.3,35.0]
[1736137963639,1.89579507,3665.8,3665.3,35.0685839]
[1736137964564,0.7513,3665.8,3665.3,35.0685839]
[1736137964864,0.7513,3665.8,3665.3,0.0685839]
[1736137965427,0.7513,3665.8,3665.0,0.55]
[1736137965622,0.7513,3665.8,3665.4,0.06821782]
[1736137965828,1.14449507,3666.0,3665.2,1.3648]
[1736137966151,1.14449507,3666.0,3665.6,0.7792]
[1736137966527,1.14449507,3666.0,3665.7,0.06811784]
[1736137967627,1.14449507,3666.4,3665.9,0.8137]
[1736137967932,1.14449507,3666.4,3666.3,0.8137]
[1736137968128,1.14449507,3666.4,3666.3,1.3637]
[1736137968336,1.14449507,3666.4,3666.3,35.8813075]
[1736137968650,1.14449507,3666.4,3666.3,0.0676075]
[1736137968956,1.47426494,3666.4,3665.4,3.26903]
[1736137969166,2.45472,3666.4,3666.3,0.0675942]
[1736137969353,2.45484,3666.3,3665.4,0.8137]
[1736137969765,2.61576802,3666.4,3665.5,0.06678303]
[1736137970067,2.45487,3666.2,3665.5,0.06678303]
[1736137970237,2.45487,3666.2,3665.1,0.7944]
[1736137970436,2.45487,3666.2,3665.6,0.06702016]
[1736137970642,2.45487,3666.2,3665.1,0.7944]
[1736137970825,2.45487,3666.2,3665.7,0.06698684]
[1736137971031,2.45487,3666.2,3665.1,0.7944]
[1736137971325,2.45487,3666.2,3665.8,0.06695352]
[1736137971530,0.69833331,3666.1,3665.1,0.7944]
[1736137971870,1.99909064,3666.1,3665.2,0.06715347]
[1736137972240,1.30075733,3666.1,3665.2,0.06715347]
[1736137972647,2.45499,3666.0,3665.2,0.06715347]
[1736137972869,3.91652535,3666.1,3665.2,0.06715347]
[1736137973379,5.07069802,3666.1,3665.2,0.06715347]
[1736137974666,6.21519309,3666.1,3665.2,0.06715347]
[1736137975449,0.8694086,3666.0,3665.2,0.06715347]
[1736137975850,2.17014439,3666.0,3665.2,0.06715347]
[1736137976969,0.8694086,3666.0,3665.2,0.06715347]
[1736137977341,0.8694086,3666.0,3665.2,35.06715347]
[1736137977686,1.14449507,3666.1,3665.3,0.06712014]
[1736137978049,1.14449507,3666.1,3665.2,2.45551]
[1736137978252,1.14449507,3666.2,3665.4,35.06708681]
[1736137978481,1.14449507,3666.2,3665.4,35.0]
[1736137978678,2.24198105,3666.2,3665.5,0.06705349]
[1736137979553,1.09748598,3666.2,3665.5,0.06705349]
[1736137980163,1.09748598,3666.2,3665.4,0.1]
[1736137980669,1.09748598,3666.2,3665.5,0.06705349]
[1736137982151,1.14449507,3666.4,3665.6,0.8114]
[1736137982546,3.59922507,3666.4,3665.7,0.06732828]
[1736137982750,3.59922507,3666.4,3665.7,35.06732828]
[1736137982990,3.59922507,3666.4,3665.7,35.0]
[1736137983189,2.45473,3666.4,3665.8,0.06729496]
[1736137983586,0.43975251,3666.3,3665.8,0.06729496]
[1736137983743,0.7983,3666.2,3665.8,0.06729496]
[1736137983897,2.45493,3666.1,3665.4,0.1]
[1736137984395,2.45493,3666.1,3665.5,0.06739492]
[1736137984594,2.45508,3665.9,3665.5,0.06739492]
[1736137984827,2.45514,3665.8,3665.5,0.06739492]
[1736137985004,0.7983,3665.7,3665.5,0.06739492]
[1736137987494,2.45525,3665.6,3665.5,0.06739492]
[1736137987818,2.45525,3665.6,3665.4,0.1]
[1736137988023,0.7983,3665.7,3665.4,0.1]
[1736137988196,0.7983,3665.7,3665.5,0.06756788]
[1736137988599,3.2535,3665.7,3665.5,0.06756788]
[1736137989242,3.8404268,3665.7,3665.5,0.06756788]
[1736137994058,2.45525,3665.6,3665.5,0.06756788]
[1736137994659,3.28835,3665.6,3665.5,0.06756788]
[1736137994864,2.45532,3665.5,3665.4,0.1]
[1736137995675,3.28452,3665.5,3665.4,0.1]
[1736137995964,4.30500799,3665.5,3665.4,0.1]
[1736137996656,7.31754971,3665.5,3665.4,0.1]
[1736137998606,9.62361119,3665.5,3665.4,0.1]
[1736137998861,10.17114406,3665.5,3665.4,0.1]
[1736138005006,7.89022025,3665.5,3665.4,0.1]
[1736138006262,10.74750212,3665.5,3665.4,0.1]
[1736138009911,10.17416766,3665.5,3665.4,0.1]
[1736138010708,7.89022025,3665.5,3665.4,0.1]
[1736138015325,10.74750212,3665.5,3665.4,0.1]
[1736138017584,10.86550212,3665.5,3665.4,0.1]
[1736138018417,10.86550212,3665.5,3664.3,0.828]
[1736138018598,2.4559,3664.7,3664.3,0.828]
[1736138019186,2.45593,3664.6,3664.3,0.828]
[1736138019622,0.8301,3664.5,3663.5,0.1788871]
[1736138019923,3.598077,3664.8,3663.6,2.52370587]
[1736138020220,3.598077,3664.8,3663.7,0.8087]
[1736138020384,3.75804502,3664.8,3663.8,0.8087]
[1736138020591,3.75804502,3664.8,3663.8,0.87349932]
[1736138020789,3.75804502,3664.8,3663.8,0.8087]
[1736138021526,2.45613,3664.3,3663.8,0.8087]
[1736138024950,2.45628,3664.1,3663.5,0.9893871]
[1736138025095,3.0413348,3664.1,3663.5,0.9893871]
[1736138025293,3.0413348,3664.1,3663.6,0.06460224]
[1736138028435,3.0413348,3664.1,3663.5,0.9893871]
[1736138028846,3.0413348,3664.1,3663.6,0.06460224]
[1736138029132,3.0413348,3664.1,3663.5,0.9893871]
[1736138030036,0.49621118,3664.0,3663.5,0.9893871]
[1736138030395,2.95254118,3664.0,3663.5,0.9893871]
[1736138031418,2.45647,3663.8,3663.5,0.9893871]
[1736138032934,1.142277,3664.2,3663.5,0.9893871]
[1736138033113,2.4563,3664.1,3663.5,0.9893871]
[1736138033542,1.142277,3664.2,3663.5,0.9893871]
[1736138033741,3.598517,3664.2,3663.6,0.06460224]
[1736138033941,3.598517,3664.2,3663.7,0.822]
[1736138034149,3.598517,3664.2,3663.8,0.06453552]
[1736138034351,2.45624,3664.2,3663.7,0.822]
[1736138034652,2.45624,3664.2,3663.8,0.06453552]
[1736138034847,3.38349629,3664.2,3663.8,0.06453552]
[1736138035058,2.45634,3664.0,3663.7,0.822]
[1736138035367,0.92725629,3664.2,3663.7,0.822]
[1736138035368,2.4564,3663.9,3663.7,0.822]
[1736138037472,3.75804502,3664.1,3663.5,0.9302871]
[1736138037767,2.4566,3663.6,3663.5,0.9302871]
[1736138038957,0.7582,3664.0,3663.5,0.9302871]
[1736138039152,2.4566,3663.6,3663.5,0.1788871]
[1736138039479,3.598547,3664.1,3663.6,0.7767]
[1736138040002,1.142277,3663.8,3663.6,0.7767]
[1736138040343,1.142277,3663.8,3663.7,0.06514519]
[1736138040539,1.142277,3663.8,3663.6,0.7767]
[1736138040849,1.142277,3663.8,3663.5,0.1788871]
[1736138042678,2.44503989,3663.8,3663.6,0.816]
[1736138042883,2.44503989,3663.8,3663.6,0.88117855]
[1736138043392,2.44503989,3663.8,3663.7,1.3218]
[1736138043549,2.44503989,3663.8,3663.7,1.72403957]
[1736138043879,2.44503989,3663.8,3663.7,1.78911825]
[1736138044321,1.142277,3663.9,3663.7,4.22972825]
[1736138044587,1.142277,3663.9,3663.8,1.3059]
[1736138044795,1.142277,3663.9,3663.8,3.76236]
[1736138045087,1.142277,3663.9,3663.8,4.26825299]
[1736138045861,1.142277,3664.8,3664.0,0.7559]
[1736138046075,1.142277,3664.8,3664.3,1.3059]
[1736138046245,1.142277,3664.8,3664.4,0.7559]
[1736138046451,1.142277,3664.8,3664.4,0.82043048]
[1736138046850,1.142277,3665.1,3664.4,0.7559]
[1736138047063,2.44032829,3665.1,3664.4,0.7559]
[1736138047987,2.44503989,3665.0,3664.4,0.7559]
[1736138048557,2.44503989,3665.0,3664.5,0.06390762]
[1736138048759,2.44503989,3665.0,3664.6,0.8171]
[1736138048959,2.44503989,3665.0,3664.7,0.06384094]
[1736138049171,1.142277,3665.2,3664.8,0.8171]
[1736138049974,1.142277,3665.2,3664.9,0.06377426]
[1736138050286,2.44503989,3665.4,3664.9,0.06377426]
[1736138050494,0.98006219,3665.3,3664.9,0.06377426]
[1736138050652,0.98006219,3665.3,3664.8,0.8171]
[1736138051396,2.44503989,3665.4,3664.8,0.8171]
[1736138051586,1.142277,3665.4,3664.8,0.8171]
[1736138052173,1.142277,3665.4,3664.9,0.06364577]
[1736138052762,4.89902862,3665.5,3664.8,0.8171]
[1736138053100,0.7505,3665.4,3664.8,0.8171]
[1736138053256,0.99787121,3665.3,3664.8,0.8171]
[1736138053962,3.61363923,3665.3,3664.0,0.7902]
[1736138054189,3.61035556,3665.3,3664.2,0.7902]
[1736138054698,3.61035556,3665.3,3664.3,0.06384581]
[1736138054873,2.45562,3665.1,3664.3,0.06384581]
[1736138057297,4.75263256,3665.3,3664.3,0.06384581]
[1736138057505,0.77736256,3665.2,3664.4,0.8241]
[1736138057879,0.77736256,3665.2,3664.5,0.06377912]
[1736138059092,0.77736256,3665.2,3664.5,35.06377912]
[1736138060101,5.07122802,3665.3,3664.5,35.06377912]
[1736138061304,1.142277,3665.4,3664.6,0.7912]
[1736138061606,1.142277,3665.4,3664.7,0.06362384]
[1736138061970,1.142277,3665.5,3664.8,35.0]
[1736138062180,1.142277,3665.5,3664.9,0.0635616]
[1736138063217,1.142277,3665.5,3664.6,0.7912]
[1736138063418,1.142277,3665.5,3664.7,35.0]
[1736138063733,7.04420502,3665.6,3664.7,35.06357068]
[1736138064023,7.04420502,3665.6,3664.7,0.06357068]
[1736138065375,2.45534,3665.5,3664.7,0.06357068]
[1736138065908,2.61576802,3665.3,3664.7,0.06357068]
[1736138066077,0.2615768,3665.2,3664.6,0.7912]
[1736138066514,0.2615768,3665.2,3664.7,0.06357068]
[1736138067025,0.2615768,3665.2,3664.6,0.7912]
[1736138067537,0.2615768,3665.2,3664.7,0.06357068]
[1736138067831,0.2615768,3665.2,3664.6,0.7912]
[1736138068179,0.2615768,3665.2,3664.7,0.06357068]
[1736138068528,0.2615768,3665.2,3664.6,0.7912]
[1736138068909,0.2615768,3665.2,3664.7,0.06152616]
[1736138069104,0.2615768,3665.2,3664.6,0.7912]
[1736138069673,0.2615768,3665.2,3664.7,0.06152616]
[1736138071932,2.61576802,3665.0,3664.7,0.06152616]
[1736138072076,2.45579,3664.8,3664.7,0.06152616]
[1736138072520,2.61576802,3665.0,3663.6,35.0]
[1736138072679,2.45586,3664.7,3663.7,0.754]
[1736138073027,5.07162802,3664.7,3663.7,0.81588842]
[1736138073239,5.07162802,3664.7,3663.7,1.16103097]
[1736138073403,5.18962802,3664.7,3663.8,35.0]
[1736138073940,2.61576802,3664.4,3663.9,0.06182171]
[1736138074217,5.07182802,3664.4,3663.7,0.754]
[1736138074582,5.07182802,3664.4,3663.8,0.06204117]
[1736138074982,5.07182802,3664.4,3663.7,0.754]
[1736138075209,5.07182802,3664.4,3663.8,0.06204117]
[1736138075596,2.61576802,3664.4,3663.7,0.754]
[1736138075797,2.61576802,3664.4,3663.8,0.06204117]
[1736138077413,5.07184802,3664.4,3663.8,0.06204117]
[1736138077979,2.61576802,3664.4,3663.8,0.06204117]
[1736138078213,2.45622,3664.2,3663.8,0.06204117]
[1736138078723,2.61576802,3664.4,3663.7,0.754]
[1736138078875,5.07183802,3664.4,3663.9,0.06222057]
[1736138079078,1.30145469,3664.3,3663.8,0.06225393]
[1736138079380,1.30145469,3664.3,3663.7,0.754]
[1736138079816,1.30145469,3664.3,3663.8,0.06230269]
[1736138080418,1.142277,3664.5,3663.9,0.06226934]
[1736138080714,1.260277,3664.5,3663.9,0.06226934]
[1736138080893,1.142277,3664.5,3663.7,0.754]
[1736138081089,1.142277,3664.5,3664.0,0.06223599]
[1736138081317,1.142277,3664.5,3663.7,1.09296071]
[1736138081807,1.142277,3664.5,3663.8,0.06230269]
[1736138083838,2.45606,3664.4,3663.8,0.06230269]
[1736138084224,3.7577642,3664.4,3663.8,0.06230269]
[1736138084527,2.45614,3664.3,3663.8,0.06230269]
[1736138084882,2.45614,3664.3,3663.7,0.754]
[1736138085116,4.70427222,3664.4,3663.9,0.06265934]
[1736138085434,2.4562,3664.2,3664.0,0.06262599]
[1736138085734,5.07202802,3664.1,3664.0,0.06262599]
[1736138085935,2.4565,3663.8,3663.5,0.1788871]
[1736138086235,2.45633,3664.0,3663.5,0.1788871]
[1736138086732,2.45633,3664.0,3663.6,0.06272838]
[1736138087234,3.598607,3664.0,3663.6,0.06272838]
[1736138087730,2.45647,3663.8,3663.6,0.06272838]
[1736138090922,4.358307,3664.0,3663.5,0.1788871]
[1736138091295,3.598607,3664.0,3663.6,0.06287911]
[1736138092738,1.142277,3664.1,3663.6,0.06287911]
[1736138093038,1.142277,3664.1,3663.7,0.7847]
[1736138093425,1.142277,3664.1,3663.8,0.0628124]
[1736138093937,4.13656201,3664.3,3663.7,0.7847]
[1736138094111,4.13656201,3664.3,3663.9,0.06277904]
[1736138094312,5.29935196,3664.3,3663.8,0.0628124]
[1736138094637,5.29935196,3664.3,3663.7,0.7847]
[1736138094638,2.45621,3664.2,3663.7,0.7847]
[1736138095038,2.45621,3664.2,3663.8,0.0628124]
[1736138095418,2.45621,3664.2,3663.7,0.7847]
[1736138095620,2.45626,3664.1,3663.7,0.7847]
[1736138095829,2.45626,3664.1,3663.8,0.0628124]
[1736138096355,2.45626,3664.1,3663.7,0.7847]
[1736138096842,2.45626,3664.1,3663.8,0.0628124]
[1736138097240,2.45626,3664.1,3663.7,0.7847]
[1736138097649,1.142277,3664.2,3663.8,0.0628124]
[1736138097823,3.598487,3664.2,3663.8,0.0628124]
[1736138098017,3.598487,3664.2,3663.7,0.7847]
[1736138098350,3.598487,3664.2,3663.8,0.0629454]
[1736138098517,3.598487,3664.2,3663.7,0.7847]
[1736138098853,3.598487,3664.2,3663.8,0.0629454]
[1736138099251,2.45621,3664.2,3663.7,0.7847]
[1736138099543,2.45627,3664.1,3663.9,0.06291204]
[1736138099751,2.45627,3664.1,3663.8,0.0629454]
[1736138099917,2.45627,3664.1,3663.7,0.7847]
[1736138100139,2.45627,3664.1,3663.9,0.06291204]
[1736138100456,4.13656201,3664.3,3663.7,0.7847]
[1736138100656,2.45621,3664.2,3663.7,0.7847]
[1736138100832,2.45621,3664.2,3663.8,0.0629454]
[1736138101234,1.142277,3664.3,3663.7,0.7847]
[1736138101431,1.142277,3664.3,3663.9,0.06291204]
[1736138101626,1.98967365,3664.3,3663.8,0.0629454]
[1736138101857,1.98967365,3664.3,3663.5,0.1788871]
[1736138101858,0.7614,3664.0,3663.5,0.1788871]
[1736138102151,3.21773,3664.0,3663.5,0.1788871]
[1736138102355,0.7614,3664.0,3663.5,0.1788871]
[1736138102954,1.903677,3664.0,3663.5,0.1788871]
[1736138103465,2.45649,3663.8,3663.5,0.1788871]
[1736138104147,2.45657,3663.7,3663.5,0.1788871]
[1736138104958,0.7614,3664.0,3663.5,0.1788871]
[1736138105135,2.4564,3663.9,3663.5,0.1788871]
[1736138105655,1.903677,3664.0,3663.5,0.1788871]
[1736138105862,2.45653,3663.7,3663.5,0.1788871]
[1736138108150,2.45653,3663.7,3663.6,0.06319833]
[1736138110869,3.598667,3663.9,3663.6,0.06319833]
[1736138111025,1.18135268,3663.8,3663.6,0.06319833]
[1736138111225,1.18135268,3663.8,3663.5,0.1788871]
[1736138111841,1.18135268,3663.8,3663.6,0.06316729]
[1736138113171,1.142277,3663.9,3663.6,0.06316729]
[1736138113375,1.142277,3663.9,3663.7,0.8202]
[1736138113669,1.142277,3663.9,3663.8,0.06310057]
[1736138114162,1.142277,3663.9,3663.7,0.8202]
[1736138114382,1.142277,3664.0,3663.9,0.7696]
[1736138114806,1.142277,3664.0,3663.9,5.28625774]
[1736138115069,1.142277,3664.0,3663.9,6.7835871]
[1736138115470,1.142277,3664.0,3663.9,41.7835871]
[1736138115673,1.142277,3664.9,3664.0,0.8221]
[1736138115880,1.142277,3664.9,3664.2,0.8221]
[1736138116317,1.142277,3664.9,3664.3,0.06261019]
[1736138117305,1.142277,3665.1,3664.4,0.8221]
[1736138117705,1.142277,3665.1,3664.5,0.0625435]
[1736138117921,1.142277,3665.1,3664.6,0.8218]
[1736138118404,1.142277,3665.1,3664.7,0.06222421]
[1736138118590,1.142277,3665.3,3664.6,0.8218]
[1736138118790,1.142277,3665.3,3664.7,2.45584]
[1736138119038,1.142277,3665.3,3664.8,0.88399088]
[1736138119947,1.142277,3665.3,3665.0,0.8218]
[1736138120447,1.142277,3665.6,3665.1,0.0610017]
[1736138120651,1.957277,3665.6,3665.1,0.0610017]
[1736138120851,2.61564586,3665.4,3665.1,0.0610017]
[1736138121054,2.45552,3665.2,3664.4,0.7912]
[1736138121440,2.45552,3665.2,3664.5,0.06112198]
[1736138122353,0.8161,3665.0,3664.5,0.06112198]
[1736138122916,0.8161,3665.0,3664.1,0.805]
[1736138123249,0.8161,3665.0,3664.2,0.06122201]
[1736138123550,3.27178,3665.0,3664.2,0.06122201]
[1736138123855,0.8161,3665.0,3664.1,0.805]
[1736138124041,3.27178,3665.0,3664.1,0.805]
[1736138124214,3.27178,3665.0,3664.2,0.06122201]
[1736138124418,0.70297029,3664.9,3664.1,0.805]
[1736138124638,2.45579,3664.8,3664.2,0.06150559]
[1736138124839,0.70297029,3664.9,3664.1,0.805]
[1736138125045,0.70297029,3664.9,3664.2,0.06150559]
[1736138125554,0.70297029,3664.9,3664.1,0.805]
[1736138125922,0.70297029,3664.9,3664.2,0.06150559]
[1736138126250,0.70297029,3664.9,3664.1,0.805]
[1736138126251,1.142277,3665.0,3664.1,0.805]
[1736138126631,1.142277,3665.0,3664.2,0.06150559]
[1736138127020,3.597817,3665.2,3664.2,0.06150559]
[1736138127419,1.142277,3665.2,3664.3,1.3362]
[1736138127757,1.142277,3665.2,3664.3,0.7862]
[1736138127916,0.80447584,3665.1,3664.3,0.7862]
[1736138128117,0.80447584,3665.1,3664.4,0.06143889]
[1736138128553,0.80447584,3665.1,3664.3,0.7862]
[1736138128752,0.7674,3665.0,3664.5,0.06140555]
[1736138129053,0.7674,3665.0,3664.6,0.06137221]
[1736138129420,0.7674,3665.0,3664.3,0.7862]
[1736138131853,1.142277,3665.1,3664.3,0.7862]
[1736138132361,1.142277,3665.2,3664.3,0.7862]
[1736138132587,2.19746329,3665.2,3664.3,0.7862]
[1736138132875,2.19746329,3665.2,3664.4,0.10391289]
[1736138133386,4.420137,3665.3,3664.3,0.7862]
[1736138133722,4.420137,3665.3,3664.4,0.10391289]
[1736138134019,4.420137,3665.3,3664.3,0.7862]
[1736138134315,4.420137,3665.3,3664.4,0.10391289]
[1736138134622,4.420137,3665.3,3664.3,0.7862]
[1736138134802,0.94095859,3665.2,3664.4,0.10391289]
[1736138135004,0.94095859,3665.2,3664.3,0.7862]
[1736138135217,0.94095859,3665.2,3664.4,0.10391289]
[1736138135361,0.94095859,3665.2,3664.3,0.7862]
[1736138135557,1.142277,3665.3,3664.4,0.90161289]
[1736138135796,1.142277,3665.3,3664.5,0.7977]
[1736138136064,1.142277,3665.3,3664.9,2.4557]
[1736138136282,1.142277,3665.3,3665.0,0.8314]
[1736138136483,1.142277,3665.3,3665.0,0.93510593]
[1736138137183,3.50584586,3666.0,3665.0,0.93510593]
[1736138137184,1.142277,3665.9,3665.0,0.93510593]
[1736138137390,2.61564586,3665.7,3665.0,0.8314]
[1736138137694,2.61564586,3665.7,3665.1,0.10367144]
[1736138137894,2.45516,3665.8,3665.1,0.10367144]
[1736138138196,2.45516,3665.8,3665.0,0.8314]
[1736138138360,3.46691646,3665.8,3665.0,0.8314]
[1736138138758,1.01175646,3665.8,3665.0,0.8314]
[1736138138964,1.01175646,3665.8,3665.1,0.10367144]
[1736138140731,1.01175646,3665.8,3665.0,0.8314]
[1736138141961,3.46687646,3665.8,3665.0,0.8314]
[1736138142667,1.88978632,3665.9,3665.0,0.8314]
[1736138142996,0.74750932,3665.9,3665.0,0.8314]
[1736138143159,0.74750932,3665.9,3665.1,0.10347204]
[1736138143365,0.74750932,3665.9,3665.2,0.7809]
[1736138144397,2.45512,3665.8,3665.3,0.10340307]
[1736138144558,0.58182752,3665.7,3665.2,0.7809]
[1736138144763,0.58182752,3665.7,3665.3,0.10340307]
[1736138144964,0.58182752,3665.7,3665.2,0.7809]
[1736138145176,0.58182752,3665.7,3665.3,0.10312836]
[1736138145398,0.58182752,3665.7,3665.2,0.7809]
[1736138145607,0.30369475,3665.6,3665.2,0.7809]
[1736138145763,0.30369475,3665.6,3665.3,0.10312836]
[1736138145963,0.30369475,3665.6,3665.2,0.7809]
[1736138146188,0.30369475,3665.6,3665.3,0.10312836]
[1736138146391,0.30369475,3665.6,3665.2,0.7809]
[1736138146607,0.30369475,3665.6,3665.3,0.10312836]
[1736138146764,0.30369475,3665.6,3665.2,0.7809]
[1736138146964,0.30369475,3665.6,3665.3,0.10312836]
[1736138147193,0.30369475,3665.6,3665.2,0.7809]
[1736138147394,0.30369475,3665.6,3665.3,0.10312836]
[1736138147622,0.30369475,3665.6,3665.2,0.7809]
[1736138147770,3.03701752,3665.7,3665.3,0.10312836]
[1736138147964,3.03701752,3665.7,3665.2,0.7809]
[1736138152602,0.8212,3665.6,3664.5,0.7996]
[1736138152964,2.45573,3664.9,3664.6,0.10336978]
[1736138153169,3.27686,3665.0,3664.6,0.10336978]
[1736138153381,2.61564586,3665.1,3664.5,0.7996]
[1736138153683,2.61564586,3665.1,3664.6,0.09678668]
[1736138153684,2.45559,3665.1,3664.6,0.09678668]
[1736138154610,5.07109586,3665.4,3664.7,0.7996]
[1736138154766,1.142277,3665.2,3664.7,0.7996]
[1736138155167,1.142277,3665.2,3664.8,0.0967177]
[1736138155401,1.142277,3665.2,3664.7,0.7996]
[1736138155609,1.142277,3665.2,3664.8,0.0967177]
[1736138155778,1.142277,3665.2,3664.7,0.7996]
[1736138155981,6.21337286,3665.4,3664.7,0.7996]
[1736138157409,3.75792286,3665.4,3664.7,0.7996]
[1736138158014,7.38654785,3665.4,3664.7,0.7996]
[1736138158212,2.45548,3665.3,3664.7,0.7996]
[1736138158911,1.142277,3665.2,3664.7,0.7996]
[1736138159404,2.45559,3665.1,3664.7,0.7996]
[1736138159614,5.07123586,3665.1,3664.0,0.8188]
[1736138159793,6.21351286,3665.1,3664.2,0.8188]
[1736138160107,6.21351286,3665.1,3664.4,0.8188]
[1736138160472,2.45566,3665.0,3664.5,0.09682118]
[1736138161100,1.142277,3664.9,3664.5,0.09682118]
[1736138161604,1.142277,3664.9,3664.4,0.8188]
[1736138163199,4.39069384,3664.9,3664.4,0.8188]
[1736138163509,2.45584,3664.8,3664.4,0.8188]
[1736138164042,1.93496384,3664.9,3664.4,0.8188]
[1736138165435,4.39069384,3664.9,3664.4,0.8188]
[1736138166033,1.142277,3664.8,3664.4,0.8188]
[1736138167033,2.32306628,3664.8,3664.4,0.8188]
[1736138167930,1.142277,3664.8,3664.4,0.8188]
[1736138168433,1.142277,3664.8,3664.5,0.91349535]
[1736138168641,1.142277,3664.7,3664.5,0.91349535]
[1736138170024,1.142277,3665.0,3664.5,0.91349535]
[1736138170211,1.142277,3665.0,3664.7,0.8164]
[1736138170418,1.142277,3665.0,3664.9,0.8164]
[1736138170750,1.142277,3665.0,3664.9,0.91346349]
[1736138171101,1.142277,3665.3,3664.9,0.91346349]
[1736138171557,2.32306628,3665.3,3664.9,0.91346349]
[1736138171759,2.32306628,3665.3,3664.9,0.8164]
[1736138171958,2.32306628,3665.3,3665.0,0.097029]
[1736138172161,1.18078928,3665.3,3665.0,0.097029]
[1736138172774,1.18078928,3665.1,3664.9,0.8164]
[1736138173075,2.4554,3665.4,3664.9,0.8164]
[1736138173450,3.597677,3665.4,3664.9,0.8164]
[1736138174101,3.597677,3665.4,3664.7,0.8164]
[1736138174281,1.142277,3665.2,3664.7,0.8164]
[1736138174437,1.142277,3665.2,3664.8,0.09709798]
[1736138174637,1.142277,3665.2,3664.7,0.8164]
[1736138174951,1.142277,3665.2,3664.8,0.09709798]
[1736138175283,6.68067919,3665.2,3664.7,0.8164]
[1736138175486,4.22512919,3665.2,3664.8,0.09709798]
[1736138175685,4.22512919,3665.2,3664.2,0.8164]
[1736138175885,4.22512919,3665.2,3664.3,0.09727046]
[1736138176089,1.142277,3665.2,3664.6,0.55]
[1736138176261,1.142277,3665.2,3664.7,0.91353247]
[1736138176994,1.142277,3665.0,3664.7,0.91353247]
[1736138177367,1.142277,3665.0,3664.7,0.8164]
[1736138177890,1.7134155,3665.2,3664.7,0.8164]
[1736138177891,1.142277,3665.1,3664.7,0.8164]
[1736138178187,1.142277,3665.1,3664.8,0.09707145]
[1736138178555,1.142277,3665.1,3664.7,0.8164]
[1736138178750,1.142277,3665.1,3664.9,0.09703696]